bitfinex-derivatives/quotes_SOLF0:USTF0_20241230
["timestamp","ask_amount","ask_price","bid_price","bid_amount"]
[1735521332787,2.9707,191.99,191.87,54.3]
[1735521332991,2.9707,191.99,191.88,3.2]
[1735521333389,2.9707,191.99,191.88,5.8108]
[1735521333390,2.6102,191.94,191.88,5.8108]
[1735521333792,2.9707,191.99,191.88,3.2]
[1735521333986,2.61,191.95,191.89,2.6108]
[1735521334892,2.9707,191.99,191.88,3.2]
[1735521335195,2.9707,191.99,191.84,3.2]
[1735521336383,2.9707,191.99,191.84,5.8115]
[1735521337392,2.9707,191.99,191.83,3.2]
[1735521337593,2.9707,191.99,191.81,3.2]
[1735521337893,2.9707,191.99,191.8,3.2]
[1735521338491,2.611,191.88,191.81,2.6117]
[1735521338694,2.611,191.88,191.8,3.2]
[1735521338890,5.8105,191.92,191.8,3.2]
[1735521339085,3.2,191.92,191.8,3.2]
[1735521339293,1.5491,191.91,191.8,3.2]
[1735521339490,3.0395,191.91,191.8,3.2]
[1735521339686,4.2253,191.9,191.83,2.6116]
[1735521340393,2.6108,191.89,191.83,2.6116]
[1735521340592,1.6145,191.9,191.8,3.2]
[1735521340791,1.5491,191.91,191.8,3.2]
[1735521341292,1.5491,191.91,191.86,2.6111]
[1735521341494,1.5491,191.91,191.86,5.8111]
[1735521343101,1.5491,191.91,191.81,3.2]
[1735521343298,1.5157,191.9,191.8,3.2]
[1735521343499,2.6113,191.86,191.8,5.8119]
[1735521345002,2.6113,191.85,191.8,5.8119]
[1735521345699,1.5157,191.9,191.8,3.2]
[1735521345898,2.6112,191.86,191.81,2.6118]
[1735521346496,2.6109,191.88,191.83,2.6116]
[1735521347500,1.5157,191.9,191.85,2.6113]
[1735521347700,1.5491,191.91,191.8,3.2]
[1735521347997,4.1663,191.94,191.8,3.2]
[1735521348501,1.5562,191.94,191.8,3.2]
[1735521349004,1.5594,191.97,191.81,4.12247822]
[1735521349193,4.1692,191.97,191.82,4.12247822]
[1735521349392,4.1692,191.97,191.83,4.12093429]
[1735521349702,4.1692,191.97,191.84,4.12093429]
[1735521350003,4.1692,191.97,191.91,2.6104]
[1735521350202,4.1692,191.97,191.91,5.8104]
[1735521350900,4.1692,191.97,191.92,2.6103]
[1735521351099,2.6099,191.96,191.92,2.6103]
[1735521351699,2.6099,191.96,191.91,3.2]
[1735521352298,1.5594,191.97,191.91,3.2]
[1735521352594,3.0866,192.06,191.91,3.2]
[1735521352801,1.5108,192.05,191.91,3.2]
[1735521352999,4.1195,192.05,191.99,2.6094]
[1735521353395,1.5108,192.05,191.97,3.2]
[1735521353605,2.6089,192.04,191.98,2.6094]
[1735521353895,2.6089,192.04,191.97,3.2]
[1735521354103,1.5108,192.05,191.97,3.2]
[1735521354302,4.1194,192.05,191.97,3.2]
[1735521354894,4.1194,192.05,191.99,2.6094]
[1735521356094,4.1194,192.05,192.0,2.6093]
[1735521356298,1.5108,192.05,192.0,2.6093]
[1735521356505,1.5108,192.05,191.97,3.2]
[1735521357504,4.1194,192.05,191.99,2.6094]
[1735521357911,2.6088,192.04,191.99,2.6094]
[1735521359003,1.5108,192.05,191.85,7.24226137]
[1735521359209,1.5108,192.05,191.86,7.33537606]
[1735521359398,1.5108,192.05,191.87,4.13537606]
[1735521359602,2.6091,192.02,191.88,4.13537606]
[1735521359802,2.6091,192.02,191.89,4.13537606]
[1735521360002,1.5108,192.05,191.9,4.13537606]
[1735521360198,1.5108,192.05,191.97,2.6097]
[1735521360703,1.5108,192.05,191.94,3.2]
[1735521361500,2.6093,192.01,191.96,2.6098]
[1735521361701,1.5108,192.05,191.96,2.6098]
[1735521362208,4.7108,192.05,191.85,4.14139095]
[1735521362409,4.7108,192.05,191.86,7.34139095]
[1735521362610,4.7108,192.05,191.87,4.14139095]
[1735521362809,4.7108,192.05,191.88,4.14139095]
[1735521363005,4.7108,192.05,191.89,4.14139095]
[1735521363204,4.7108,192.05,191.9,4.14139095]
[1735521363405,4.7108,192.05,191.91,3.2]
[1735521363810,4.7108,192.05,191.94,2.61]
[1735521364108,4.7108,192.05,191.91,3.2]
[1735521365312,2.6094,192.0,191.91,3.2]
[1735521366307,2.6094,192.0,191.93,2.6101]
[1735521366513,2.6094,192.0,191.91,3.2]
[1735521366918,2.6095,191.99,191.91,3.2]
[1735521367607,2.6097,191.97,191.92,2.6103]
[1735521368114,3.2,192.02,191.79,7.24226137]
[1735521368313,3.2,192.02,191.8,7.34810915]
[1735521368512,3.2,192.02,191.81,4.14810915]
[1735521368713,2.6106,191.91,191.86,2.6111]
[1735521368908,2.6106,191.91,191.84,3.2]
[1735521369318,2.6106,191.91,191.86,2.6111]
[1735521369825,2.6106,191.91,191.84,3.2]
[1735521370117,2.6104,191.92,191.87,2.6109]
[1735521372122,3.0714,191.95,191.87,2.6109]
[1735521372421,4.5565,191.95,191.79,4.15466511]
[1735521372716,4.5565,191.95,191.81,3.2]
[1735521372917,4.5565,191.95,191.87,2.611]
[1735521373507,2.6105,191.92,191.87,2.611]
[1735521373817,4.5565,191.95,191.81,3.2]
[1735521374015,1.4609,191.95,191.81,3.2]
[1735521374217,2.6097,191.98,191.81,3.2]
[1735521374416,3.2,192.0,191.81,3.2]
[1735521374617,21.60131723,192.02,191.81,3.2]
[1735521374816,24.21031723,192.02,191.81,3.2]
[1735521375013,21.60131723,192.02,191.81,18.87]
[1735521375216,21.60131723,192.02,191.98,2.6095]
[1735521375417,11.98202792,192.03,191.98,2.6095]
[1735521376119,3.1622,192.03,191.98,2.6095]
[1735521376520,5.7711,192.03,191.98,2.6095]
[1735521377616,3.1622,192.03,191.96,3.2]
[1735521377822,3.1622,192.03,191.92,3.2]
[1735521378023,1.5872,192.03,191.92,3.2]
[1735521378223,1.554,192.07,191.92,3.2]
[1735521378721,2.6087,192.04,191.98,2.6094]
[1735521378923,1.554,192.07,191.97,3.2]
[1735521380213,2.6089,192.02,191.97,3.2]
[1735521380419,1.554,192.07,191.83,4.14654329]
[1735521380629,1.554,192.07,191.84,7.34654329]
[1735521380821,1.554,192.07,191.94,2.61]
[1735521381016,1.554,192.07,191.92,3.2]
[1735521382026,2.6094,191.99,191.94,2.61]
[1735521383124,23.15531723,192.07,191.92,3.2]
[1735521383328,1.554,192.07,191.92,3.2]
[1735521383529,2.6085,192.05,191.96,2.6097]
[1735521383730,21.60131723,192.08,191.97,3.2]
[1735521384025,21.60131723,192.08,191.98,3.2]
[1735521384330,1.4934,192.09,191.98,3.2]
[1735521384530,1.4934,192.09,191.89,54.24]
[1735521384824,1.4934,192.09,191.9,7.3446246]
[1735521385032,1.4934,192.09,191.91,4.1446246]
[1735521385231,1.4934,192.09,191.97,2.6096]
[1735521385432,1.4934,192.09,191.98,3.2]
[1735521387435,1.4934,192.09,192.01,2.609]
[1735521388029,1.4934,192.09,192.04,2.6085]
[1735521388728,1.4934,192.09,191.98,3.2]
[1735521388929,2.9987,192.14,191.99,3.2]
[1735521389234,593.35413569,192.23,192.0,4.14296447]
[1735521389235,86.9136296,192.2,192.0,4.14296447]
[1735521389433,86.9136296,192.2,192.01,4.14296447]
[1735521389737,21.60131723,192.19,192.02,4.14296447]
[1735521389930,21.60131723,192.19,192.14,2.6072]
[1735521390229,21.60131723,192.19,192.04,4.14296447]
[1735521390434,21.60131723,192.19,191.98,2.12595681]
[1735521390435,2.6069,192.18,192.05,3.2]
[1735521390731,21.60131723,192.19,192.05,3.2]
[1735521390932,21.60131723,192.19,192.09,2.6079]
[1735521390933,2.6067,192.19,192.09,2.6079]
[1735521391132,1.554,192.21,192.1,3.2]
[1735521392929,2.6069,192.17,192.12,2.6075]
[1735521393734,1.554,192.21,192.1,3.2]
[1735521394237,21.60131723,192.29,192.11,20.85059432]
[1735521394447,20.85059432,192.28,192.11,20.85059432]
[1735521394835,20.85059432,192.28,192.19,2.6066]
[1735521395033,20.85059432,192.28,192.18,3.2]
[1735521395236,20.85059432,192.25,192.15,3.2]
[1735521396530,20.85059432,192.25,192.18,2.6067]
[1735521396728,20.85059432,192.28,192.18,2.6067]
[1735521396929,20.85059432,192.28,192.15,3.2]
[1735521397526,4.6037,192.29,192.16,20.85059432]
[1735521397731,1.03998752,192.31,192.16,20.85059432]
[1735521397932,1.03998752,192.31,192.19,20.85059432]
[1735521398138,1.03998752,192.31,192.27,2.6054]
[1735521399330,1.03998752,192.31,192.26,2.6057]
[1735521399737,1.03998752,192.31,192.28,2.6054]
[1735521399926,1.03998752,192.31,192.25,3.2]
[1735521401536,1.03998752,192.31,192.3,2.6051]
[1735521401741,1.03998752,192.31,192.3,5.7851]
[1735521404644,1.03998752,192.31,192.3,26.63569432]
[1735521404847,1.615,192.43,192.38,2.604]
[1735521405144,1.615,192.43,192.37,3.18]
[1735521405333,1.615,192.43,192.3,20.85059432]
[1735521405534,22.46559432,192.43,192.33,2.6046]
[1735521405934,22.46559432,192.43,192.32,5.7848]
[1735521406240,20.85059432,192.4,192.3,3.18]
[1735521406433,3.1438,192.39,192.3,3.18]
[1735521406634,3.1438,192.39,192.31,2.6049]
[1735521406635,2.6042,192.37,192.31,2.6049]
[1735521407335,2.6042,192.37,192.32,2.6048]
[1735521407536,2.6041,192.38,192.32,2.6048]
[1735521407748,3.1438,192.39,192.3,3.18]
[1735521407945,1.548,192.39,192.3,24.03059432]
[1735521408147,1.615,192.43,192.3,24.03059432]
[1735521408550,1.615,192.43,192.39,2.6038]
[1735521408942,1.615,192.43,192.37,3.18]
[1735521409145,1.615,192.43,192.4,2.6038]
[1735521409939,1.524,192.45,192.37,3.18]
[1735521410145,1.6068,192.48,192.37,3.18]
[1735521410345,64.1856174,192.58,192.46,2.603]
[1735521410346,2.6024,192.51,192.46,2.603]
[1735521410848,27.16139432,192.55,192.44,3.18]
[1735521411050,23.98139432,192.55,192.44,3.18]
[1735521411252,2.6021,192.53,192.47,2.6028]
[1735521412652,2.6022,192.52,192.46,2.6029]
[1735521413053,2.6022,192.52,192.44,3.18]
[1735521413549,2.6022,192.52,192.46,2.6029]
[1735521414052,23.98139432,192.55,192.44,3.18]
[1735521414242,23.98139432,192.55,192.3,22.97287958]
[1735521414243,20.85059432,192.52,192.36,20.85059432]
[1735521414446,24.03059432,192.52,192.37,3.18]
[1735521415558,20.85059432,192.49,192.33,20.85059432]
[1735521415862,1.5621,192.48,192.34,3.18]
[1735521416651,2.6029,192.47,192.42,2.6035]
[1735521416855,2.6029,192.47,192.33,20.85059432]
[1735521416856,1.5621,192.48,192.4,3.18]
[1735521417059,3.18,192.52,192.41,3.18]
[1735521417354,2.6022,192.52,192.47,2.6028]
[1735521417857,1.4917,192.54,192.47,2.6028]
[1735521418058,2.6023,192.51,192.47,2.6028]
[1735521418254,20.85059432,192.53,192.44,2.6032]
[1735521418459,2.6025,192.5,192.44,2.6032]
[1735521419360,2.6025,192.5,192.45,2.6031]
[1735521419956,2.6026,192.49,192.45,2.6031]
[1735521420261,20.85059432,192.53,192.44,2.6032]
[1735521420467,20.85059432,192.5,192.3,2.12228526]
[1735521420654,20.85059432,192.5,192.33,20.85059432]
[1735521420855,20.85059432,192.5,192.36,20.85059432]
[1735521421154,20.85059432,192.5,192.37,3.22]
[1735521421658,20.85059432,192.53,192.37,3.22]
[1735521421859,1.4917,192.54,192.46,2.6028]
[1735521422365,2.6023,192.51,192.46,2.6028]
[1735521422665,1.4917,192.54,192.44,5.8231]
[1735521422958,2.6025,192.5,192.44,3.22]
[1735521423151,20.85059432,192.53,192.48,2.6027]
[1735521423359,1.4917,192.54,192.48,2.6027]
[1735521423758,1.4917,192.54,192.44,3.22]
[1735521424665,54.16,192.68,192.45,20.85059432]
[1735521424862,20.85059432,192.64,192.48,20.85059432]
[1735521425063,20.85059432,192.64,192.49,3.22]
[1735521425560,2.6011,192.6,192.49,3.22]
[1735521425960,2.6011,192.6,192.52,2.6021]
[1735521426165,1.5888,192.59,192.49,3.22]
[1735521426566,2.6015,192.57,192.52,2.6022]
[1735521426759,1.5888,192.59,192.49,3.22]
[1735521426956,1.4807,192.56,192.49,3.22]
[1735521427357,2.6018,192.55,192.49,5.8224]
[1735521427560,1.4807,192.56,192.49,3.22]
[1735521428566,1.6023,192.55,192.49,3.22]
[1735521429465,1.6023,192.55,192.52,2.6021]
[1735521430570,1.6023,192.55,192.53,2.602]
[1735521431067,1.4807,192.56,192.54,2.6019]
[1735521431268,1.4807,192.56,192.49,3.22]
[1735521431664,2.6019,192.55,192.49,3.22]
[1735521431864,1.4807,192.56,192.49,3.22]
[1735521432974,4.214,192.6,192.49,3.22]
[1735521433162,1.6128,192.6,192.51,20.85059432]
[1735521433366,1.6128,192.6,192.59,2.6012]
[1735521433564,1.6128,192.6,192.56,3.22]
[1735521433872,1.6128,192.6,192.57,3.22]
[1735521434070,2.6015,192.57,192.53,3.22]
[1735521434267,1.6105,192.59,192.53,3.22]
[1735521435061,4.2118,192.59,192.53,3.22]
[1735521435370,4.2118,192.59,192.54,2.6018]
[1735521435566,1.6105,192.59,192.53,3.22]
[1735521435973,1.6105,192.59,192.56,2.6016]
[1735521436167,1.6105,192.59,192.48,20.85059432]
[1735521436370,1.6105,192.59,192.31,160.54522759]
[1735521436371,14.5860572,192.59,192.49,16.1955572]
[1735521436567,1.6105,192.59,192.54,2.6018]
[1735521436772,1.6105,192.59,192.5,3.22]
[1735521437272,1.6105,192.59,192.52,12.9755572]
[1735521437869,1.6105,192.59,192.57,2.6014]
[1735521438070,1.6105,192.59,192.52,12.9755572]
[1735521438071,1.6128,192.6,192.55,3.22]
[1735521439373,1.55,192.64,192.61,2.6008]
[1735521439783,1.55,192.64,192.55,16.1955572]
[1735521439968,12.9755572,192.68,192.55,16.1955572]
[1735521440165,3.1026,192.69,192.58,12.9755572]
[1735521440675,1.5075,192.68,192.58,12.9755572]
[1735521441075,14.4830572,192.68,192.59,3.22]
[1735521441271,12.9755572,192.65,192.59,3.22]
[1735521441872,12.9755572,192.65,192.55,3.22]
[1735521442275,14.4830572,192.68,192.55,3.22]
[1735521443068,2.6006,192.64,192.59,2.6011]
[1735521443871,12.9755572,192.63,192.52,12.9755572]
[1735521444080,12.9755572,192.63,192.53,3.22]
[1735521444275,2.6011,192.6,192.54,2.6018]
[1735521444578,3.0738,192.59,192.54,2.6018]
[1735521445085,3.0738,192.59,192.52,2.6021]
[1735521445283,3.0738,192.59,192.46,12.9755572]
[1735521445581,2.602,192.54,192.5,2.6024]
[1735521446283,1.4734,192.58,192.46,12.9755572]
[1735521446284,12.9755572,192.57,192.46,16.1955572]
[1735521446684,12.9755572,192.57,192.46,18.7984572]
[1735521446890,4.6934,192.58,192.46,16.1955572]
[1735521447085,1.4734,192.58,192.49,12.9755572]
[1735521447281,1.4734,192.58,192.52,12.9755572]
[1735521447485,3.0738,192.59,192.52,16.1955572]
[1735521447690,3.0738,192.59,192.54,2.6019]
[1735521448091,1.6159,192.63,192.52,16.1955572]
[1735521448485,1.5555,192.62,192.52,16.1955572]
[1735521449186,2.601,192.61,192.55,2.6017]
[1735521449392,2.601,192.61,192.52,16.1955572]
[1735521449893,2.601,192.61,192.55,2.6017]
[1735521450189,2.601,192.61,192.52,16.1955572]
[1735521450388,2.601,192.61,192.54,2.6018]
[1735521450693,2.601,192.61,192.52,16.1955572]
[1735521450987,14.5310572,192.62,192.53,2.6019]
[1735521451386,2.6012,192.6,192.53,2.6019]
[1735521451587,14.5310572,192.62,192.55,2.6017]
[1735521452694,2.6012,192.59,192.54,2.6019]
[1735521452898,14.5310572,192.62,192.52,3.22]
[1735521453092,1.5318,192.58,192.52,3.22]
[1735521453493,2.6015,192.57,192.52,5.8221]
[1735521453688,1.5318,192.58,192.52,3.22]
[1735521454294,1.5318,192.58,192.52,16.1955572]
[1735521454486,1.5318,192.58,192.52,3.22]
[1735521454997,1.5318,192.58,192.52,3.24]
[1735521456098,2.6018,192.55,192.52,3.24]
[1735521456393,2.6018,192.55,192.51,2.6022]
[1735521456394,1.5318,192.58,192.48,3.24]
[1735521456791,2.6018,192.55,192.48,3.24]
[1735521456999,1.5318,192.58,192.48,3.24]
[1735521457292,2.6017,192.56,192.51,2.6022]
[1735521457492,1.5318,192.58,192.51,2.6022]
[1735521457694,1.5318,192.58,192.48,3.24]
[1735521457894,1.5318,192.58,192.55,2.6018]
[1735521458192,1.5318,192.58,192.53,12.9755572]
[1735521458392,4.7955,192.62,192.53,16.2155572]
[1735521458393,26.39681723,192.62,192.53,16.2155572]
[1735521458793,23.15681723,192.62,192.53,16.2155572]
[1735521459196,12.9755572,192.61,192.49,12.9755572]
[1735521459397,2.6014,192.58,192.5,2.6024]
[1735521459696,3.24,192.6,192.5,2.6024]
[1735521460099,2.6019,192.54,192.5,2.6024]
[1735521461601,12.9755572,192.58,192.47,3.24]
[1735521462096,12.9755572,192.55,192.41,12.9755572]
[1735521462294,12.9755572,192.58,192.41,16.2155572]
[1735521462295,12.9755572,192.52,192.41,16.2155572]
[1735521463399,2.6027,192.48,192.43,2.6033]
[1735521464300,29.45361723,192.54,192.44,12.9755572]
[1735521464601,21.60131723,192.53,192.44,12.9755572]
[1735521465501,7.8523,192.54,192.44,12.9755572]
[1735521465695,4.6123,192.54,192.47,12.9755572]
[1735521466095,4.6123,192.54,192.51,2.6023]
[1735521468099,3.051,192.54,192.51,2.6023]
[1735521468298,5.7196,192.59,192.55,2.6017]
[1735521468498,5.7196,192.59,192.5,12.9755572]
[1735521468499,3.1183,192.59,192.5,12.9755572]
[1735521468898,3.1183,192.59,192.51,3.24]
[1735521469099,2.6011,192.6,192.55,2.6018]
[1735521469902,2.6012,192.59,192.55,2.6018]
[1735521470304,2.6012,192.59,192.54,2.6019]
[1735521470503,2.6015,192.58,192.51,3.24]
[1735521470905,12.9755572,192.61,192.51,2.6022]
[1735521471106,2.6017,192.56,192.51,2.6022]
[1735521471603,2.6019,192.54,192.49,5.8425]
[1735521471797,12.9755572,192.58,192.45,3.24]
[1735521472000,1.6174,192.53,192.45,3.24]
[1735521472196,1.6174,192.53,192.44,12.9755572]
[1735521472403,1.4826,192.52,192.44,3.24]
[1735521473005,2.6023,192.51,192.46,2.603]
[1735521473206,1.4826,192.52,192.44,3.24]
[1735521474504,2.6025,192.5,192.46,2.603]
[1735521475299,1.6174,192.53,192.44,16.2155572]
[1735521475501,1.4754,192.58,192.47,12.9755572]
[1735521475699,3.0747,192.58,192.5,12.9755572]
[1735521475902,3.0747,192.58,192.5,16.2155572]
[1735521475903,21.60131723,192.57,192.5,16.2155572]
[1735521476810,1.5239,192.6,192.53,12.9755572]
[1735521477110,144.85604934,192.61,192.56,2.6017]
[1735521477111,2.601,192.61,192.56,2.6017]
[1735521477704,3.0747,192.63,192.6,2.6011]
[1735521478809,5.6755,192.63,192.58,2.6014]
[1735521479515,2.6011,192.62,192.56,2.6016]
[1735521480412,3.0747,192.63,192.55,2.6019]
[1735521480812,3.0747,192.63,192.53,16.2555572]
[1735521481407,2.601,192.62,192.56,2.6016]
[1735521482111,3.0747,192.63,192.53,16.2555572]
[1735521483406,3.0747,192.63,192.58,2.6015]
[1735521483613,21.60131723,192.68,192.56,12.9755572]
[1735521483812,24.58141723,192.68,192.56,12.9755572]
[1735521484316,57.94241973,192.69,192.66,12.9755572]
[1735521484511,21.65217137,192.71,192.68,12.9755572]
[1735521484711,21.65217137,192.71,192.69,3.28]
[1735521484906,21.65217137,192.71,192.7,2.5999]
[1735521485311,86.9136296,192.74,192.69,3.28]
[1735521485611,70.48052809,192.74,192.73,15.5750572]
[1735521485811,57.64387899,192.83,192.73,12.9755572]
[1735521486007,57.64387899,192.83,192.74,3.28]
[1735521486218,57.64387899,192.83,192.78,2.5988]
[1735521486413,57.64387899,192.83,192.79,3.28]
[1735521486915,4.5877,192.88,192.79,3.28]
[1735521487612,2.5978,192.85,192.79,5.8786]
[1735521487812,4.5877,192.88,192.79,3.28]
[1735521488019,4.5877,192.88,192.8,2.5985]
[1735521488618,2.598,192.84,192.79,3.28]
[1735521489114,2.5979,192.85,192.79,5.8786]
[1735521489420,20.70161609,192.92,192.8,3.28]
[1735521490415,2.5976,192.88,192.81,2.5984]
[1735521490919,2.5976,192.88,192.8,3.28]
[1735521491216,2.5973,192.9,192.8,3.28]
[1735521491614,2.5975,192.88,192.8,3.28]
[1735521491920,20.70161609,192.92,192.8,3.28]
[1735521492124,2.5978,192.86,192.8,2.5984]
[1735521492319,2.5978,192.86,192.81,3.28]
[1735521493111,20.70161609,192.92,192.81,3.28]
[1735521493419,2.5979,192.85,192.81,3.28]
[1735521494221,20.70161609,192.92,192.81,3.28]
[1735521494422,2.5977,192.87,192.81,3.28]
[1735521494718,20.70161609,192.92,192.81,3.28]
[1735521495029,2.5977,192.86,192.81,3.28]
[1735521496823,2.5981,192.84,192.77,2.5989]
[1735521497021,20.70161609,192.89,192.7,20.70161609]
[1735521497221,20.70161609,192.86,192.71,3.28]
[1735521497525,2.5982,192.83,192.76,2.599]
[1735521497722,20.70161609,192.89,192.77,3.28]
[1735521498026,4.106,192.88,192.81,2.5983]
[1735521498220,1.5084,192.88,192.81,3.28]
[1735521498416,20.70161609,192.92,192.81,3.28]
[1735521498724,2.5969,192.92,192.86,2.5976]
[1735521498919,2.5969,192.92,192.86,5.8776]
[1735521499421,1.5084,192.93,192.76,20.70161609]
[1735521499725,2.5976,192.87,192.81,2.5984]
[1735521500026,20.70161609,192.92,192.82,3.28]
[1735521500423,20.70161609,192.89,192.73,20.70161609]
[1735521500625,20.70161609,192.89,192.74,3.28]
[1735521501122,2.5978,192.86,192.74,3.28]
[1735521501326,20.70161609,192.89,192.74,3.28]
[1735521501926,2.5979,192.85,192.79,2.5985]
[1735521502126,2.5979,192.85,192.8,3.28]
[1735521502326,20.70161609,192.89,192.73,20.70161609]
[1735521502526,2.5982,192.83,192.77,2.5988]
[1735521502725,20.70161609,192.89,192.74,3.28]
[1735521503123,2.5979,192.85,192.78,2.5988]
[1735521503325,20.70161609,192.89,192.79,3.28]
[1735521503526,20.70161609,192.89,192.8,3.28]
[1735521504127,2.5977,192.87,192.8,3.28]
[1735521504428,1.5084,192.93,192.8,3.28]
[1735521504429,20.70161609,192.92,192.8,3.28]
[1735521505130,2.5976,192.87,192.82,2.5982]
[1735521505431,20.70161609,192.92,192.8,3.28]
[1735521505932,20.70161609,192.92,192.8,5.8785]
[1735521506237,2.5978,192.86,192.8,5.8785]
[1735521506436,20.70161609,192.92,192.8,5.8785]
[1735521506726,2.5974,192.89,192.8,3.28]
[1735521506931,1.5084,192.93,192.8,3.28]
[1735521507135,1.5084,192.93,192.81,1.03729059]
[1735521507835,1.5084,192.93,192.88,2.5973]
[1735521508034,1.5084,192.93,192.88,5.8773]
[1735521508333,3.0974,192.94,192.91,2.597]
[1735521508538,1.5019,192.99,192.88,3.28]
[1735521508731,3.0884,192.99,192.88,3.28]
[1735521509032,3.0884,192.99,192.91,2.597]
[1735521509233,3.0884,192.99,192.88,3.28]
[1735521509628,2.5962,192.98,192.92,2.5969]
[1735521509830,2.5962,192.98,192.93,3.32]
[1735521510631,2.5964,192.96,192.93,3.32]
[1735521511431,3.0884,192.99,192.93,3.32]
[1735521511637,2.5965,192.95,192.93,3.32]
[1735521512541,3.0884,192.99,192.93,3.32]
[1735521512838,20.67979469,193.06,192.93,3.32]
[1735521513035,1.4566,193.04,192.93,3.32]
[1735521513230,2.596,192.99,192.93,3.32]
[1735521513436,1.4566,193.04,192.93,3.32]
[1735521514239,1.4566,193.04,192.89,20.67979469]
[1735521514430,1.4566,193.04,192.9,3.32]
[1735521515139,20.67979469,193.0,192.9,3.32]
[1735521515735,20.67979469,193.0,192.86,7.24226137]
[1735521515935,20.67979469,193.0,192.87,3.32]
[1735521516330,2.597,192.92,192.87,5.9176]
[1735521517442,20.67979469,193.0,192.87,3.32]
[1735521518544,20.67979469,193.0,192.9,2.5972]
[1735521518942,20.67979469,193.0,192.87,3.32]
[1735521519134,1.4566,193.04,192.89,20.67979469]
[1735521519842,2.5957,193.01,192.89,20.67979469]
[1735521520041,1.4566,193.04,192.89,20.67979469]
[1735521520647,2.5959,193.0,192.89,20.67979469]
[1735521520841,1.4566,193.04,192.9,3.32]
[1735521521938,20.67979469,193.02,192.91,3.32]
[1735521522435,2.5966,192.95,192.91,3.32]
[1735521522835,23.99979469,192.99,192.88,3.32]
[1735521523036,2.597,192.91,192.87,3.32]
[1735521523847,2.597,192.91,192.87,5.9176]
[1735521524746,3.0774,192.94,192.87,3.32]
[1735521525336,1.5319,192.94,192.87,3.32]
[1735521525537,1.4807,193.01,192.87,3.32]
[1735521525837,2.5962,192.97,192.91,2.597]
[1735521526042,2.5962,192.97,192.92,3.32]
[1735521526348,3.0796,193.01,192.92,3.32]
[1735521527143,3.0796,193.01,192.95,2.5965]
[1735521527648,2.5958,193.0,192.95,2.5965]
[1735521527949,2.5958,193.0,192.96,2.5963]
[1735521529641,3.0796,193.01,192.92,3.32]
[1735521529846,3.0796,193.01,192.93,3.32]
[1735521530849,2.5965,192.96,192.91,5.917]
[1735521531446,2.5961,192.98,192.93,2.5967]
[1735521531749,2.5961,192.98,192.91,3.32]
[1735521532148,2.5961,192.98,192.93,2.5967]
[1735521533242,2.5962,192.97,192.93,2.5967]
[1735521533447,3.0796,193.01,192.89,12.92372308]
[1735521533749,2.5963,192.97,192.92,2.5969]
[1735521534341,3.0796,193.01,192.91,3.32]
[1735521534549,2.5961,192.99,192.94,2.5966]
[1735521534938,3.0796,193.01,192.91,3.32]
[1735521535144,3.0796,193.01,192.92,12.92372308]
[1735521535339,1.5557,193.05,192.95,12.92372308]
[1735521535547,1.5557,193.05,192.96,3.32]
[1735521536144,2.5955,193.03,192.98,2.596]
[1735521536649,2.5953,193.04,192.99,2.5959]
[1735521537439,3.2056,193.06,192.96,16.24372308]
[1735521538753,5.8006,193.06,192.96,16.24372308]
[1735521539152,2.5949,193.07,193.02,2.5956]